[Event "*** SCC Grand Prix: Titled Tuesday Blitz"]
[Site "Chess.com"]
[Date "2020.08.25"]
[Round "4"]
[White "Siri20"]
[Black "BogdanDeac"]
[Result "1-0"]
[WhiteElo "2718"]
[BlackElo "2842"]
[TimeControl "180+1"]
[EndTime "10:40:32 PDT"]
[Termination "Siri20 won by resignation"]

1. e4 {[%clk 0:03:00.9]} 1... c6 {[%clk 0:02:56.2]} 2. d4 {[%clk 0:03:00.4]}
2... d5 {[%clk 0:02:56.2]} 3. Nc3 {[%clk 0:02:58.2]} 3... a6 {[%clk 0:02:55.9]}
4. Nf3 {[%clk 0:02:54.8]} 4... Bg4 {[%clk 0:02:55.5]} 5. Be2 {[%clk 0:02:48.6]}
5... e6 {[%clk 0:02:47.8]} 6. O-O {[%clk 0:02:46.6]} 6... Nf6 {[%clk 0:02:47.4]}
7. h3 {[%clk 0:02:38.8]} 7... Bh5 {[%clk 0:02:43.6]} 8. Ne5 {[%clk 0:02:32.1]}
8... Bxe2 {[%clk 0:02:24.5]} 9. Qxe2 {[%clk 0:02:33]} 9... Be7 {[%clk
0:02:24.4]} 10. Bf4 {[%clk 0:02:28.5]} 10... O-O {[%clk 0:02:20.5]} 11. Rad1
{[%clk 0:02:26.8]} 11... Qb6 {[%clk 0:02:13]} 12. Rd3 {[%clk 0:02:08.6]} 12...
Rd8 {[%clk 0:02:03.7]} 13. Rfd1 {[%clk 0:02:01.7]} 13... Nbd7 {[%clk 0:01:53]}
14. Nxd7 {[%clk 0:01:46.4]} 14... Rxd7 {[%clk 0:01:53.2]} 15. e5 {[%clk
0:01:42.9]} 15... Ne8 {[%clk 0:01:46.3]} 16. b3 {[%clk 0:01:38.7]} 16... Qa5
{[%clk 0:01:44.7]} 17. Bd2 {[%clk 0:01:34.5]} 17... Bb4 {[%clk 0:01:21.8]} 18.
h4 {[%clk 0:01:23.2]} 18... c5 {[%clk 0:01:15.8]} 19. dxc5 {[%clk 0:01:20.4]}
19... Qxc5 {[%clk 0:01:08.9]} 20. Na4 {[%clk 0:01:15.2]} 20... Qa5 {[%clk
0:00:58.5]} 21. c3 {[%clk 0:01:13.1]} 21... Be7 {[%clk 0:00:56.2]} 22. c4 {[%clk
0:01:12.9]} 22... Qd8 {[%clk 0:00:48.9]} 23. Be3 {[%clk 0:01:06.6]} 23... Rb8
{[%clk 0:00:48]} 24. Nb6 {[%clk 0:00:57]} 24... Nc7 {[%clk 0:00:38.1]} 25. Nxd7
{[%clk 0:00:52]} 25... Qxd7 {[%clk 0:00:38.2]} 26. Bb6 {[%clk 0:00:49.1]} 26...
Bxh4 {[%clk 0:00:38.2]} 27. Bxc7 {[%clk 0:00:43.9]} 27... Qxc7 {[%clk
0:00:38.1]} 28. cxd5 {[%clk 0:00:44.1]} 28... exd5 {[%clk 0:00:38.7]} 29. Rxd5
{[%clk 0:00:44.1]} 29... Re8 {[%clk 0:00:39.3]} 30. Qh5 {[%clk 0:00:39.2]} 30...
Be7 {[%clk 0:00:26.2]} 31. e6 {[%clk 0:00:36.1]} 31... Rf8 {[%clk 0:00:25]} 32.
Rd7 {[%clk 0:00:33.9]} 32... Qc5 {[%clk 0:00:19.3]} 33. Qxc5 {[%clk 0:00:30.3]}
33... Bxc5 {[%clk 0:00:20.2]} 34. exf7+ {[%clk 0:00:23.7]} 34... Rxf7 {[%clk
0:00:20.2]} 35. Rxf7 {[%clk 0:00:22.7]} 35... Kxf7 {[%clk 0:00:21.1]} 36. Rd7+
{[%clk 0:00:23]} 36... Kf6 {[%clk 0:00:21.4]} 37. Rxb7 {[%clk 0:00:23.9]} 37...
h5 {[%clk 0:00:20.7]} 38. Rc7 {[%clk 0:00:23.8]} 38... Bb4 {[%clk 0:00:19]} 39.
Rc6+ {[%clk 0:00:23.8]} 39... Ke5 {[%clk 0:00:19.5]} 40. Rxa6 {[%clk 0:00:24.5]}
1-0

[Event "*** SCC Grand Prix: Titled Tuesday Blitz"]
[Site "Chess.com"]
[Date "2020.08.25"]
[Round "4"]
[White "Sanan_Sjugirov"]
[Black "RenarddesSurfaces"]
[Result "0-1"]
[WhiteElo "2844"]
[BlackElo "2540"]
[TimeControl "180+1"]
[EndTime "10:40:35 PDT"]
[Termination "RenarddesSurfaces won on time"]

1. e4 {[%clk 0:03:00.9]} 1... d6 {[%clk 0:02:56.6]} 2. d4 {[%clk 0:03:00.4]}
2... Nf6 {[%clk 0:02:57.1]} 3. Nc3 {[%clk 0:03:00.6]} 3... Nbd7 {[%clk
0:02:57.6]} 4. Nf3 {[%clk 0:02:59.3]} 4... e5 {[%clk 0:02:57.3]} 5. Bc4 {[%clk
0:02:51.2]} 5... Be7 {[%clk 0:02:56.9]} 6. O-O {[%clk 0:02:51.4]} 6... O-O
{[%clk 0:02:57.1]} 7. a4 {[%clk 0:02:51.5]} 7... c6 {[%clk 0:02:57.4]} 8. Ba2
{[%clk 0:02:49.8]} 8... b6 {[%clk 0:02:54.8]} 9. Re1 {[%clk 0:02:46.9]} 9... Bb7
{[%clk 0:02:53.3]} 10. h3 {[%clk 0:02:43.7]} 10... a6 {[%clk 0:02:47.6]} 11. Be3
{[%clk 0:02:40.6]} 11... b5 {[%clk 0:02:45.3]} 12. axb5 {[%clk 0:02:37.8]} 12...
axb5 {[%clk 0:02:44.5]} 13. b4 {[%clk 0:02:37.3]} 13... d5 {[%clk 0:01:53.8]}
14. dxe5 {[%clk 0:01:27.6]} 14... Nxe4 {[%clk 0:01:53.6]} 15. Nxe4 {[%clk
0:01:25.7]} 15... dxe4 {[%clk 0:01:54.5]} 16. e6 {[%clk 0:01:18.3]} 16... exf3
{[%clk 0:01:39.7]} 17. exd7 {[%clk 0:01:16.5]} 17... Bxb4 {[%clk 0:01:30.9]} 18.
Bd2 {[%clk 0:00:55.7]} 18... Bxd2 {[%clk 0:01:17.4]} 19. Qxd2 {[%clk 0:00:56.6]}
19... c5 {[%clk 0:01:18]} 20. Bxf7+ {[%clk 0:00:06.2]} 20... Kxf7 {[%clk
0:00:46]} 21. Rxa8 {[%clk 0:00:05.9]} 21... Bxa8 {[%clk 0:00:38.2]} 22. Qd6
{[%clk 0:00:05.8]} 22... Qf6 {[%clk 0:00:15.1]} 23. Qc7 {[%clk 0:00:01.7]} 23...
Rd8 {[%clk 0:00:07.7]} 24. Qa7 {[%clk 0:00:01.2]} 24... fxg2 {[%clk 0:00:05.8]}
25. Qxc5 {[%clk 0:00:01.3]} 25... Bc6 {[%clk 0:00:03.1]} 0-1

[Event "*** SCC Grand Prix: Titled Tuesday Blitz"]
[Site "Chess.com"]
[Date "2020.08.25"]
[Round "4"]
[White "x-0414717230"]
[Black "talman67"]
[Result "0-1"]
[WhiteElo "2711"]
[BlackElo "2509"]
[TimeControl "180+1"]
[EndTime "10:40:35 PDT"]
[Termination "talman67 won by resignation"]

1. d4 {[%clk 0:03:00.9]} 1... Nf6 {[%clk 0:03:00.2]} 2. c4 {[%clk 0:03:00.8]}
2... e6 {[%clk 0:03:00.5]} 3. Nf3 {[%clk 0:03:00.8]} 3... d5 {[%clk 0:03:00.4]}
4. Nc3 {[%clk 0:03:00]} 4... c5 {[%clk 0:03:00.7]} 5. cxd5 {[%clk 0:02:59.5]}
5... Nxd5 {[%clk 0:03:01.6]} 6. e3 {[%clk 0:03:00.1]} 6... Nxc3 {[%clk
0:03:02.2]} 7. bxc3 {[%clk 0:03:00.1]} 7... Be7 {[%clk 0:03:02.9]} 8. Bd3 {[%clk
0:02:57.2]} 8... O-O {[%clk 0:03:03.4]} 9. O-O {[%clk 0:02:57.6]} 9... Qc7
{[%clk 0:03:02.8]} 10. c4 {[%clk 0:02:56.1]} 10... b6 {[%clk 0:02:56.8]} 11. d5
{[%clk 0:02:51.9]} 11... Bf6 {[%clk 0:02:56.1]} 12. Rb1 {[%clk 0:02:49.9]} 12...
exd5 {[%clk 0:02:56.6]} 13. cxd5 {[%clk 0:02:49.5]} 13... Bg4 {[%clk 0:02:57.5]}
14. h3 {[%clk 0:02:40.8]} 14... Bh5 {[%clk 0:02:55.3]} 15. g4 {[%clk 0:02:04.7]}
15... Bg6 {[%clk 0:02:55]} 16. e4 {[%clk 0:02:01.4]} 16... Nd7 {[%clk
0:02:52.3]} 17. h4 {[%clk 0:01:26.6]} 17... Rfe8 {[%clk 0:02:40.8]} 18. Re1
{[%clk 0:01:23.5]} 18... h5 {[%clk 0:02:11.1]} 19. g5 {[%clk 0:01:21.6]} 19...
Be5 {[%clk 0:02:04.3]} 20. Nxe5 {[%clk 0:01:19.2]} 20... Nxe5 {[%clk 0:02:05.2]}
21. Bf4 {[%clk 0:01:15.2]} 21... Qd7 {[%clk 0:02:05.6]} 22. Bg3 {[%clk
0:01:14.6]} 22... Nxd3 {[%clk 0:01:17.2]} 23. Qxd3 {[%clk 0:01:14.2]} 23... Qg4
{[%clk 0:01:18.1]} 24. Rbd1 {[%clk 0:01:11.8]} 24... Bxe4 {[%clk 0:01:08.2]} 25.
Rxe4 {[%clk 0:01:08.3]} 25... Rxe4 {[%clk 0:01:09.1]} 26. Qb3 {[%clk 0:00:59.8]}
26... Rae8 {[%clk 0:00:59.7]} 27. Kg2 {[%clk 0:00:59.9]} 27... Rd4 {[%clk
0:00:51.1]} 28. Rxd4 {[%clk 0:00:58.1]} 28... Qxd4 {[%clk 0:00:52]} 29. d6
{[%clk 0:00:58.5]} 29... c4 {[%clk 0:00:43.2]} 30. Qf3 {[%clk 0:00:57.7]} 30...
Qe4 {[%clk 0:00:39.9]} 31. Qxe4 {[%clk 0:00:52.2]} 31... Rxe4 {[%clk 0:00:40.8]}
32. Kf3 {[%clk 0:00:53.1]} 32... Rd4 {[%clk 0:00:40.1]} 33. Ke3 {[%clk
0:00:52.9]} 33... Rd5 {[%clk 0:00:38.2]} 34. Ke4 {[%clk 0:00:52.1]} 34... Rd1
{[%clk 0:00:38.2]} 35. Be5 {[%clk 0:00:52.2]} 35... c3 {[%clk 0:00:34.5]} 36.
Bxc3 {[%clk 0:00:51.3]} 36... Rxd6 {[%clk 0:00:34.9]} 37. f4 {[%clk 0:00:52]}
37... g6 {[%clk 0:00:31.8]} 38. f5 {[%clk 0:00:51.7]} 38... Rc6 {[%clk
0:00:29.4]} 39. Bd4 {[%clk 0:00:50.2]} 39... Rc4 {[%clk 0:00:29.2]} 40. fxg6
{[%clk 0:00:50.4]} 40... fxg6 {[%clk 0:00:29]} 41. Kd5 {[%clk 0:00:49.6]} 41...
Ra4 {[%clk 0:00:29.6]} 42. Bxb6 {[%clk 0:00:39.3]} 42... Rxa2 {[%clk 0:00:30.5]}
43. Be3 {[%clk 0:00:37.9]} 43... Kf7 {[%clk 0:00:31]} 44. Kc6 {[%clk 0:00:37.9]}
44... Ra4 {[%clk 0:00:28.3]} 45. Bf2 {[%clk 0:00:37.3]} 45... Ke6 {[%clk
0:00:28.3]} 46. Kb7 {[%clk 0:00:37.2]} 46... Kf5 {[%clk 0:00:28]} 47. Bxa7
{[%clk 0:00:36.9]} 47... Rxa7+ {[%clk 0:00:28]} 48. Kxa7 {[%clk 0:00:37]} 48...
Kg4 {[%clk 0:00:28.9]} 49. Kb6 {[%clk 0:00:37.9]} 49... Kxh4 {[%clk 0:00:29.8]}
50. Kc6 {[%clk 0:00:38.8]} 50... Kxg5 {[%clk 0:00:30.7]} 51. Kd5 {[%clk
0:00:39.7]} 51... Kg4 {[%clk 0:00:31.1]} 52. Ke4 {[%clk 0:00:40.6]} 52... g5
{[%clk 0:00:32]} 0-1

[Event "*** SCC Grand Prix: Titled Tuesday Blitz"]
[Site "Chess.com"]
[Date "2020.08.25"]
[Round "4"]
[White "Khazieva_Elza"]
[Black "Spriteball"]
[Result "1-0"]
[WhiteElo "2420"]
[BlackElo "2216"]
[TimeControl "180+1"]
[EndTime "10:40:36 PDT"]
[Termination "Khazieva_Elza won by resignation"]

1. e4 {[%clk 0:03:00.9]} 1... e5 {[%clk 0:02:58.2]} 2. Nf3 {[%clk 0:03:00.6]}
2... Nc6 {[%clk 0:02:58.4]} 3. d3 {[%clk 0:03:00.9]} 3... Nf6 {[%clk 0:02:58]}
4. g3 {[%clk 0:03:01.3]} 4... d5 {[%clk 0:02:52.2]} 5. exd5 {[%clk 0:03:00.3]}
5... Nxd5 {[%clk 0:02:51.7]} 6. Bg2 {[%clk 0:03:00.5]} 6... Bd6 {[%clk
0:02:51.3]} 7. O-O {[%clk 0:03:00.5]} 7... O-O {[%clk 0:02:49.6]} 8. Re1 {[%clk
0:03:00.5]} 8... f5 {[%clk 0:02:45.2]} 9. Bg5 {[%clk 0:02:46.5]} 9... Nf6 {[%clk
0:02:29]} 10. Nbd2 {[%clk 0:02:19.1]} 10... h6 {[%clk 0:02:26.5]} 11. Bxf6
{[%clk 0:02:16.4]} 11... Qxf6 {[%clk 0:02:26.2]} 12. Nc4 {[%clk 0:02:07.8]}
12... Bd7 {[%clk 0:02:20.1]} 13. c3 {[%clk 0:02:04.5]} 13... Rae8 {[%clk
0:02:18.3]} 14. Qb3 {[%clk 0:02:02.5]} 14... Be6 {[%clk 0:02:03.1]} 15. Qxb7
{[%clk 0:02:00.8]} 15... Ne7 {[%clk 0:02:01]} 16. Nxd6 {[%clk 0:01:55.6]} 16...
cxd6 {[%clk 0:02:00.6]} 17. Qxa7 {[%clk 0:01:51.8]} 17... Bd5 {[%clk 0:01:53.9]}
18. Qa4 {[%clk 0:01:26]} 18... f4 {[%clk 0:01:48.5]} 19. Rf1 {[%clk 0:01:21.5]}
19... Nf5 {[%clk 0:01:32.2]} 20. Nd2 {[%clk 0:01:11.7]} 20... Bxg2 {[%clk
0:01:21.7]} 21. Kxg2 {[%clk 0:01:12.6]} 21... Qg6 {[%clk 0:01:22.1]} 22. Qe4
{[%clk 0:01:01.7]} 22... d5 {[%clk 0:01:21.9]} 23. Qxd5+ {[%clk 0:01:01.5]}
23... Kh7 {[%clk 0:01:21.9]} 24. Qe4 {[%clk 0:00:57]} 24... Kh8 {[%clk
0:00:52.6]} 25. a4 {[%clk 0:00:55.6]} 25... Qh5 {[%clk 0:00:46.9]} 26. Qf3
{[%clk 0:00:40.8]} 26... Qg5 {[%clk 0:00:43]} 27. Kh1 {[%clk 0:00:31]} 27...
fxg3 {[%clk 0:00:39.2]} 28. Ne4 {[%clk 0:00:31]} 28... Qe7 {[%clk 0:00:28.1]}
29. fxg3 {[%clk 0:00:29.9]} 29... Nd4 {[%clk 0:00:26.2]} 30. Qg2 {[%clk
0:00:24.5]} 30... Nb3 {[%clk 0:00:23.5]} 31. Rae1 {[%clk 0:00:16.3]} 31... Qd7
{[%clk 0:00:20.3]} 32. Rxf8+ {[%clk 0:00:15.3]} 32... Rxf8 {[%clk 0:00:20.4]}
33. Rf1 {[%clk 0:00:14.5]} 33... Ra8 {[%clk 0:00:17.4]} 34. Nc5 {[%clk
0:00:12.3]} 34... Rb8 {[%clk 0:00:13.5]} 35. Nxd7 {[%clk 0:00:11.9]} 1-0

[Event "*** SCC Grand Prix: Titled Tuesday Blitz"]
[Site "Chess.com"]
[Date "2020.08.25"]
[Round "4"]
[White "praveenb2002"]
[Black "penguingm1"]
[Result "0-1"]
[WhiteElo "2757"]
[BlackElo "2995"]
[TimeControl "180+1"]
[EndTime "10:40:42 PDT"]
[Termination "penguingm1 won by resignation"]

1. d4 {[%clk 0:03:00.9]} 1... d5 {[%clk 0:02:59.3]} 2. c4 {[%clk 0:03:01.5]}
2... e6 {[%clk 0:02:59.5]} 3. Nc3 {[%clk 0:03:00.3]} 3... Nf6 {[%clk 0:03:00.2]}
4. cxd5 {[%clk 0:02:59.6]} 4... exd5 {[%clk 0:03:01.1]} 5. Bg5 {[%clk
0:02:58.8]} 5... Be7 {[%clk 0:03:01.6]} 6. Qc2 {[%clk 0:02:55.8]} 6... c6 {[%clk
0:03:01.7]} 7. e3 {[%clk 0:02:55.9]} 7... Nbd7 {[%clk 0:03:01.8]} 8. Bd3 {[%clk
0:02:54.3]} 8... Nf8 {[%clk 0:03:02]} 9. Nge2 {[%clk 0:02:51]} 9... Ne6 {[%clk
0:03:02.3]} 10. Bh4 {[%clk 0:02:51.1]} 10... g6 {[%clk 0:03:03]} 11. f3 {[%clk
0:02:48.8]} 11... O-O {[%clk 0:03:03]} 12. O-O-O {[%clk 0:02:40.3]} 12... b5
{[%clk 0:03:03.1]} 13. g4 {[%clk 0:02:39.4]} 13... a5 {[%clk 0:02:52.9]} 14. Bg3
{[%clk 0:02:36]} 14... a4 {[%clk 0:02:52.9]} 15. h4 {[%clk 0:02:31.4]} 15... Qa5
{[%clk 0:02:52.4]} 16. h5 {[%clk 0:02:17.8]} 16... g5 {[%clk 0:01:42.9]} 17. a3
{[%clk 0:02:14.4]} 17... b4 {[%clk 0:01:38.7]} 18. axb4 {[%clk 0:02:12.3]} 18...
Qxb4 {[%clk 0:01:38.9]} 19. Kd2 {[%clk 0:02:10.9]} 19... Ba6 {[%clk 0:01:06.3]}
20. Bxa6 {[%clk 0:01:55.6]} 20... Rxa6 {[%clk 0:01:05.4]} 21. Ke1 {[%clk
0:01:51.8]} 21... Rfa8 {[%clk 0:00:56.7]} 22. Kf2 {[%clk 0:01:51]} 22... Rb6
{[%clk 0:00:55.6]} 23. Rb1 {[%clk 0:01:48.5]} 23... Ne8 {[%clk 0:00:31.4]} 24.
Nc1 {[%clk 0:01:08.8]} 24... Nd6 {[%clk 0:00:26.1]} 25. Nd3 {[%clk 0:01:08.7]}
25... Qb3 {[%clk 0:00:22.6]} 26. Qxb3 {[%clk 0:01:04.8]} 26... Rxb3 {[%clk
0:00:20.5]} 27. Rhc1 {[%clk 0:00:55.7]} 27... Nc4 {[%clk 0:00:20.7]} 28. Rc2
{[%clk 0:00:31.4]} 28... Bf6 {[%clk 0:00:13.7]} 29. Ra1 {[%clk 0:00:25.6]} 29...
a3 {[%clk 0:00:13.4]} 30. bxa3 {[%clk 0:00:17.4]} 30... Nxd4 {[%clk 0:00:13.3]}
31. exd4 {[%clk 0:00:17.2]} 31... Bxd4+ {[%clk 0:00:13.6]} 32. Ke2 {[%clk
0:00:16.7]} 32... Re8+ {[%clk 0:00:12.3]} 33. Ne5 {[%clk 0:00:03.1]} 33... Bxc3
{[%clk 0:00:11.4]} 34. Rac1 {[%clk 0:00:01.8]} 34... Bxe5 {[%clk 0:00:11.5]} 35.
Kf2 {[%clk 0:00:02.4]} 35... Bxg3+ {[%clk 0:00:11.3]} 36. Kxg3 {[%clk
0:00:03.3]} 36... Rxa3 {[%clk 0:00:11.7]} 0-1

[Event "*** SCC Grand Prix: Titled Tuesday Blitz"]
[Site "Chess.com"]
[Date "2020.08.25"]
[Round "4"]
[White "freshfoodcompany"]
[Black "WiktoriaPOL"]
[Result "1-0"]
[WhiteElo "2358"]
[BlackElo "1913"]
[TimeControl "180+1"]
[EndTime "10:40:42 PDT"]
[Termination "freshfoodcompany won by resignation"]

1. d4 {[%clk 0:03:00.9]} 1... Nf6 {[%clk 0:02:58.7]} 2. c4 {[%clk 0:03:01.1]}
2... g6 {[%clk 0:02:56.9]} 3. Nc3 {[%clk 0:03:01.6]} 3... Bg7 {[%clk 0:02:55.3]}
4. e4 {[%clk 0:03:02.1]} 4... d6 {[%clk 0:02:54.4]} 5. Nf3 {[%clk 0:03:02.4]}
5... O-O {[%clk 0:02:52.6]} 6. Be2 {[%clk 0:03:03]} 6... e5 {[%clk 0:02:50.9]}
7. d5 {[%clk 0:03:03.5]} 7... Ne8 {[%clk 0:02:46.1]} 8. O-O {[%clk 0:03:00.4]}
8... f5 {[%clk 0:02:43.6]} 9. Bg5 {[%clk 0:02:53.8]} 9... Nf6 {[%clk 0:02:42.3]}
10. Nd2 {[%clk 0:02:49.3]} 10... f4 {[%clk 0:02:41.6]} 11. f3 {[%clk 0:02:46]}
11... h6 {[%clk 0:02:41.2]} 12. Bh4 {[%clk 0:02:45.5]} 12... g5 {[%clk
0:02:40.6]} 13. Bf2 {[%clk 0:02:45.6]} 13... h5 {[%clk 0:02:40.2]} 14. b4 {[%clk
0:02:41.7]} 14... g4 {[%clk 0:02:35.4]} 15. c5 {[%clk 0:02:35.6]} 15... Qe8
{[%clk 0:02:31.9]} 16. cxd6 {[%clk 0:02:31.8]} 16... cxd6 {[%clk 0:02:29.9]} 17.
Nb5 {[%clk 0:02:29]} 17... Qg6 {[%clk 0:02:28]} 18. Nc7 {[%clk 0:02:20.3]} 18...
g3 {[%clk 0:02:26.2]} 19. Be1 {[%clk 0:02:18.3]} 19... gxh2+ {[%clk 0:02:24.7]}
20. Kh1 {[%clk 0:02:17]} 20... Kh7 {[%clk 0:02:14.8]} 21. Nxa8 {[%clk
0:02:14.2]} 21... Bh6 {[%clk 0:02:13.9]} 22. Bh4 {[%clk 0:02:03.5]} 22... Rg8
{[%clk 0:02:11.3]} 23. Rf2 {[%clk 0:02:01.6]} 23... Bg5 {[%clk 0:01:58.8]} 24.
Bxg5 {[%clk 0:01:58.2]} 24... Qxg5 {[%clk 0:01:59.7]} 25. Rc1 {[%clk 0:01:56]}
25... h4 {[%clk 0:01:57.1]} 26. Nc7 {[%clk 0:01:46.5]} 26... Nh5 {[%clk
0:01:55.2]} 27. Nf1 {[%clk 0:01:40.6]} 27... Ng3+ {[%clk 0:01:40.8]} 28. Nxg3
{[%clk 0:01:37.8]} 28... fxg3 {[%clk 0:01:26.9]} 29. f4 {[%clk 0:01:08.8]} 29...
exf4 {[%clk 0:01:23.8]} 30. Rf3 {[%clk 0:01:03.7]} 30... Bg4 {[%clk 0:01:22.1]}
31. Ne6 {[%clk 0:01:00.5]} 31... Bxe6 {[%clk 0:01:20.8]} 32. dxe6 {[%clk
0:01:00.2]} 32... h3 {[%clk 0:01:21.4]} 33. Bf1 {[%clk 0:00:59.1]} 33... Nc6
{[%clk 0:01:01.8]} 34. Qd5 {[%clk 0:00:56.5]} 34... Ne5 {[%clk 0:01:00.5]} 35.
Rc7+ {[%clk 0:00:53.3]} 35... Kh8 {[%clk 0:00:57.5]} 36. Qd4 {[%clk 0:00:44.4]}
36... Rg7 {[%clk 0:00:31.5]} 37. Rxg7 {[%clk 0:00:37.1]} 37... Qxg7 {[%clk
0:00:32.4]} 38. Rxf4 {[%clk 0:00:34.7]} 38... Qg5 {[%clk 0:00:18.1]} 39. Qe3
{[%clk 0:00:25.6]} 39... Ng4 {[%clk 0:00:14.9]} 40. Rf8+ {[%clk 0:00:22.8]}
40... Kh7 {[%clk 0:00:12.7]} 41. Qxg5 {[%clk 0:00:22.5]} 41... Nf2+ {[%clk
0:00:12.6]} 42. Rxf2 {[%clk 0:00:22.9]} 42... gxf2 {[%clk 0:00:12.7]} 43. Kxh2
{[%clk 0:00:23.2]} 1-0

[Event "*** SCC Grand Prix: Titled Tuesday Blitz"]
[Site "Chess.com"]
[Date "2020.08.25"]
[Round "4"]
[White "frequentblunders"]
[Black "boasovietica"]
[Result "0-1"]
[WhiteElo "2096"]
[BlackElo "2397"]
[TimeControl "180+1"]
[EndTime "10:40:43 PDT"]
[Termination "boasovietica won by resignation"]

1. e4 {[%clk 0:02:56.3]} 1... e5 {[%clk 0:02:58.6]} 2. Nf3 {[%clk 0:02:56.6]}
2... Nc6 {[%clk 0:02:56.6]} 3. Nc3 {[%clk 0:02:57.5]} 3... g6 {[%clk 0:02:53.7]}
4. d4 {[%clk 0:02:57.4]} 4... exd4 {[%clk 0:02:54.1]} 5. Nxd4 {[%clk 0:02:58]}
5... Bg7 {[%clk 0:02:54.6]} 6. Be3 {[%clk 0:02:57.9]} 6... Nf6 {[%clk
0:02:54.3]} 7. Bc4 {[%clk 0:02:58.1]} 7... O-O {[%clk 0:02:54.5]} 8. O-O {[%clk
0:02:58.3]} 8... Re8 {[%clk 0:02:55]} 9. f3 {[%clk 0:02:54.8]} 9... Nxd4 {[%clk
0:02:16.7]} 10. Bxd4 {[%clk 0:02:55.7]} 10... d6 {[%clk 0:02:07.1]} 11. Qd2
{[%clk 0:02:50.5]} 11... Be6 {[%clk 0:02:02.9]} 12. Bxe6 {[%clk 0:02:48.5]}
12... Rxe6 {[%clk 0:02:01.8]} 13. Rad1 {[%clk 0:02:48.6]} 13... Nd7 {[%clk
0:01:42]} 14. Bxg7 {[%clk 0:02:47.2]} 14... Kxg7 {[%clk 0:01:42.9]} 15. Nd5
{[%clk 0:02:43.2]} 15... Nb6 {[%clk 0:01:34.8]} 16. Qd4+ {[%clk 0:02:39.5]}
16... Kg8 {[%clk 0:01:34.5]} 17. c4 {[%clk 0:02:32.6]} 17... Nxd5 {[%clk
0:01:25.1]} 18. cxd5 {[%clk 0:02:30.3]} 18... Re7 {[%clk 0:01:24.1]} 19. f4
{[%clk 0:02:28.3]} 19... Qd7 {[%clk 0:01:16.2]} 20. Qf6 {[%clk 0:02:15.8]} 20...
Rae8 {[%clk 0:01:12.1]} 21. e5 {[%clk 0:02:02.9]} 21... dxe5 {[%clk 0:01:06.8]}
22. fxe5 {[%clk 0:02:03.8]} 22... Rxe5 {[%clk 0:01:03.7]} 23. d6 {[%clk
0:02:01.8]} 23... cxd6 {[%clk 0:00:59.7]} 24. Rxd6 {[%clk 0:02:02.7]} 24... Qe7
{[%clk 0:00:56.2]} 25. h3 {[%clk 0:01:47.1]} 25... Qxf6 {[%clk 0:00:53.4]} 26.
Rdxf6 {[%clk 0:01:36.5]} 26... R8e7 {[%clk 0:00:53.6]} 27. Kh2 {[%clk
0:01:26.3]} 27... Re2 {[%clk 0:00:52.8]} 28. R1f2 {[%clk 0:01:27.2]} 28... Rxf2
{[%clk 0:00:49.7]} 29. Rxf2 {[%clk 0:01:28.1]} 29... Kg7 {[%clk 0:00:48.9]} 30.
Kg3 {[%clk 0:01:28.2]} 30... f5 {[%clk 0:00:49.1]} 31. Kf4 {[%clk 0:01:27.8]}
31... Kf6 {[%clk 0:00:48.3]} 32. Rc2 {[%clk 0:01:24.8]} 32... g5+ {[%clk
0:00:47.5]} 33. Kf3 {[%clk 0:01:24.9]} 33... f4 {[%clk 0:00:46.8]} 34. Rd2
{[%clk 0:01:15.8]} 34... Re3+ {[%clk 0:00:41]} 35. Kg4 {[%clk 0:01:13.1]} 35...
Rg3+ {[%clk 0:00:26.2]} 36. Kh5 {[%clk 0:01:12.1]} 36... Ke6 {[%clk 0:00:25.1]}
37. Kh6 {[%clk 0:01:07.1]} 37... Ke5 {[%clk 0:00:19.8]} 38. Kxh7 {[%clk
0:01:06.7]} 38... Ke4 {[%clk 0:00:16.9]} 39. Kg6 {[%clk 0:01:05.2]} 39... Ke3
{[%clk 0:00:17.4]} 40. Rc2 {[%clk 0:01:04.4]} 40... Kd3 {[%clk 0:00:17.2]} 41.
Rc3+ {[%clk 0:01:01.4]} 41... Ke2 {[%clk 0:00:14.1]} 42. Rxg3 {[%clk 0:01:01.7]}
42... fxg3 {[%clk 0:00:14.7]} 43. Kxg5 {[%clk 0:00:58.1]} 43... Kf2 {[%clk
0:00:15.1]} 44. h4 {[%clk 0:00:57.4]} 44... Kxg2 {[%clk 0:00:15.4]} 45. h5
{[%clk 0:00:58.3]} 45... Kf2 {[%clk 0:00:14.8]} 46. h6 {[%clk 0:00:58.5]} 46...
g2 {[%clk 0:00:15.3]} 47. h7 {[%clk 0:00:58.5]} 47... g1=Q+ {[%clk 0:00:15.9]}
48. Kh6 {[%clk 0:00:55.4]} 48... Qh2+ {[%clk 0:00:15.2]} 49. Kg7 {[%clk
0:00:55.2]} 49... Ke2 {[%clk 0:00:15.6]} 50. h8=Q {[%clk 0:00:54.3]} 50... Qe5+
{[%clk 0:00:15.5]} 51. Kg8 {[%clk 0:00:53.9]} 51... Qxh8+ {[%clk 0:00:16.4]} 52.
Kxh8 {[%clk 0:00:54.8]} 52... Kd2 {[%clk 0:00:16.8]} 53. Kg7 {[%clk 0:00:55.7]}
53... Kc2 {[%clk 0:00:17.4]} 54. Kf7 {[%clk 0:00:56.6]} 54... Kxb2 {[%clk
0:00:17.7]} 55. Ke7 {[%clk 0:00:57.5]} 55... Kxa2 {[%clk 0:00:18.1]} 56. Kd7
{[%clk 0:00:58.4]} 56... b5 {[%clk 0:00:18.5]} 0-1